[Event "44th Chess Olympiad Open 2022"]
[Site "Chennai"]
[Date "2022.08.08"]
[Round "10.7"]
[White "Banusz, Tamas"]
[Black "Shevchenko, Kirill"]
[Result "1/2-1/2"]
[ECO "A30"]
[WhiteElo "2611"]
[BlackElo "2654"]
[Annotator "TA"]
[PlyCount "120"]
[EventDate "2022.07.29"]
[EventType "team-tourn"]
[EventCountry "IND"]
[SourceTitle "playchess.com"]
[Source "ChessBase"]
[SourceQuality "1"]
[WhiteTeam "Hungary"]
[BlackTeam "Ukraine"]
[WhiteTeamCountry "HUN"]
[BlackTeamCountry "UKR"]
[TimeControl "40/5400+30:1800+30"]

{[%evp 20,120,25,14,18,14,25,17,25,29,29,28,33,31,31,28,27,27,25,27,37,11,35,43,37,16,16,12,30,19,39,33,34,37,41,33,42,58,40,43,63,45,107,108,133,121,141,135,105,62,62,38,30,31,35,34,25,6,84,84,84,84,84,73,72,72,71,59,66,58,59,59,59,64,66,66,116,116,116,116,116,116,116,116,116,116,116,8,8,8,116,116,116,8,8,8,8,8,8,8,8,8,8]} 1. Nf3 {[%emt 0:00:04]} c5 {[%emt 0:00:23]} 2. c4 {[%emt 0:00:11]} Nf6 {[%emt 0:00:26]} 3. Nc3 {[%emt 0:00:23]} e6 {[%emt 0:00:21]} 4. g3 {[%emt 0:00:50]} b6 {[%emt 0:00:25]} 5. Bg2 {[%emt 0:00:22]} Bb7 {[%emt 0:00:06]} 6. O-O {[%emt 0:00:24]} Be7 {[%emt 0:00:04]} 7. d4 {[%emt 0:01:10]} cxd4 {[%emt 0:00:05]} 8. Qxd4 {[%emt 0:00:08]} O-O {[%emt 0:00:38]} 9. Rd1 {[%emt 0:02:05]} d6 {[%emt 0:01:28]} 10. b3 {[%emt 0:06:36]} Nbd7 {[%emt 0:03:47]} 11. e4 {[%emt 0:09:07]} Nc5 {[%emt 0:12:25] A30: Symmetrical English: Double Fianchetto and Hedgehog.} 12. e5 {[%emt 0:04:01]} dxe5 {[%emt 0:11:52]} 13. Qxe5 {[%emt 0:02:42] [#]} Ncd7 $146 {[%emt 0:17:21]} ({Predecessor:} 13... Qc8 14. Bb2 a5 15. Nd4 a4 16. Rab1 axb3 17. axb3 h5 18. Qe2 h4 19. gxh4 Rd8 20. Bf3 Bf8 21. h3 Bxf3 22. Qxf3 e5 23. Nf5 Rxd1+ 24. Nxd1 e4 25. Nh6+ Kh7 26. Qf5+ {½-½ (26) Zielinski,S (2268)-Pascual Perez,N (2459) LSS email 2017}) 14. Qe2 {[%emt 0:02:28]} a6 {[%emt 0:02:50]} 15. Ne5 {[%emt 0:09:35]} Bxg2 {[%emt 0:05:26]} 16. Kxg2 {[%emt 0:00:08]} Qc8 {[%emt 0:01:47] Inhibits Nc6.} 17. Nxd7 {[%emt 0:02:15]} Nxd7 {[%emt 0:00:07]} 18. Bf4 {[%emt 0:01:00]} Ra7 {[%emt 0:11:55]} 19. Rac1 {[%emt 0:04:25] Active counter play!} Qc6+ {[%emt 0:01:48]} ({Much less strong is} 19... g5 20. Bd6 Qb7+ 21. Kg1 $16) 20. Qf3 {[%emt 0:02:48]} Rc8 {[%emt 0:02:55]} 21. Qxc6 {[%emt 0:09:53]} Rxc6 {[%emt 0:00:02]} 22. h4 {[%emt 0:00:57]} h5 {[%emt 0:06:22]} 23. Rc2 {[%emt 0:04:28]} Bb4 {[%emt 0:07:56]} 24. Ne4 {[%emt 0:10:56]} e5 {[%emt 0:00:44]} 25. Bd2 {[%emt 0:01:07]} Be7 {[%emt 0:05:19]} 26. Nc3 {[%emt 0:04:35]} Bc5 {[%emt 0:03:08]} 27. Nd5 {[%emt 0:00:18]} a5 {[%emt 0:01:10]} 28. Be3 {[%emt 0:01:35]} f6 {[%emt 0:00:18]} 29. Rcd2 {[%emt 0:00:47][%cal Od5e7]} Kf8 {[%emt 0:03:08] Prevents Ne7.} 30. f4 {[%emt 0:01:45][%cal Bf2f4,Bf4f5][%mdl 32]} e4 {[%emt 0:00:38]} (30... g6 $14) 31. f5 $16 {[%emt 0:01:58][%cal Od5c3]} Ne5 {[%emt 0:00:24]} 32. Bxc5+ {[%emt 0:03:16]} bxc5 {[%emt 0:00:00]} 33. Nf4 {[%emt 0:01:58]} Rc8 {[%emt 0:00:19]} 34. Re2 {[%emt 0:01:50]} a4 {[%emt 0:00:09]} 35. Nxh5 {[%emt 0:01:41]} axb3 {[%emt 0:00:06]} 36. axb3 {[%emt 0:00:01]} Rb8 {[%emt 0:02:03]} 37. Nf4 {[%emt 0:02:53] [#] Strongly threatening Ne6+.} Kf7 {[%emt 0:00:31]} 38. Ne6 {[%emt 0:03:31]} (38. Rd5 {feels hotter.} Rxb3 39. Rxc5 Ng4 40. Rxe4 Raa3 41. Ne2) 38... Rxb3 {[%emt 0:00:01]} (38... g6 $1 $11) 39. Nxc5 {[%emt 0:00:08]} Rb4 {[%emt 0:00:40]} 40. Nxe4 {[%emt 0:02:22]} Nxc4 {[%emt 0:00:11]} 41. Kh3 {[%emt 0:11:20]} Rb8 {[%emt 0:02:54]} 42. Rc1 {[%emt 0:02:08]} Ne5 {[%emt 0:01:31]} 43. Rec2 {[%emt 0:01:12]} Kg8 {[%emt 0:11:09]} 44. Rc7 {[%emt 0:04:53]} (44. Nc5 {is more complex.} Ra3 45. Rc3 Ra2 46. Nd3) 44... Rxc7 {[%emt 0:01:12]} 45. Rxc7 $14 {[%emt 0:00:01][%mdl 4096] Endgame KRN-KRN} Nf7 {[%emt 0:00:11]} 46. g4 {[%emt 0:03:34]} Rb3+ {[%emt 0:01:38]} 47. Rc3 $1 {[%emt 0:02:55]} Rxc3+ {[%emt 0:02:35]} (47... Rb4 $14 48. Rc8+ Kh7) 48. Nxc3 {[%emt 0:00:02] KN-KN} Ne5 {[%emt 0:00:06]} 49. Nd5 {[%emt 0:00:52]} Kf7 {[%emt 0:00:05]} 50. Nf4 {[%emt 0:02:06]} Nc4 {[%emt 0:00:26]} 51. Kg3 {[%emt 0:00:31]} Nd6 {[%emt 0:00:22]} 52. Kf3 {[%emt 0:00:19]} Nc4 {[%emt 0:00:22]} 53. Ke4 {[%emt 0:01:22]} (53. Ne6 $16) 53... Ne5 $11 {[%emt 0:04:09]} 54. g5 {[%emt 0:00:27] And now Nd5 would win.} fxg5 {[%emt 0:00:09]} (54... g6 $1 $11 {remains equal.}) 55. hxg5 $16 {[%emt 0:00:11]} ({Reject} 55. Kxe5 $6 gxf4 56. Ke4 (56. Kxf4 g6 $11) 56... g6 $11) 55... Nc4 {[%emt 0:00:29]} 56. g6+ {[%emt 0:00:59]} (56. Ng6 $16 {Intending Ne5+ and mate.} Nd6+ 57. Kf4) 56... Kf6 $11 {[%emt 0:05:09] The position is equal.} 57. Nh5+ {[%emt 0:00:56]} Kg5 {[%emt 0:00:05]} 58. Nxg7 {[%emt 0:00:02] Threatens to win with Ne8.} Nd6+ {[%emt 0:00:04]} 59. Ke5 {[%emt 0:00:05]} Nxf5 $1 {[%emt 0:00:04][%mdl 64] [#] Remove Defender} 60. Nxf5 {[%emt 0:00:05] g7 would kill now.} Kxg6 {[%emt 0:00:04] Weighted Error Value: White=0.13 (very precise) /Black=0.10 (very precise)} 1/2-1/2

[Event "44th Chess Olympiad Open 2022"]
[Site "Chennai"]
[Date "2022.08.08"]
[Round "10.8"]
[White "Nisipeanu, Liviu-Dieter"]
[Black "Rodshtein, Maxim"]
[Result "1/2-1/2"]
[ECO "E59"]
[WhiteElo "2642"]
[BlackElo "2596"]
[Annotator "TA"]
[PlyCount "58"]
[EventDate "2022.07.29"]
[EventType "team-tourn"]
[EventCountry "IND"]
[SourceTitle "playchess.com"]
[Source "ChessBase"]
[SourceQuality "1"]
[WhiteTeam "Germany"]
[BlackTeam "Israel"]
[WhiteTeamCountry "GER"]
[BlackTeamCountry "ISR"]
[TimeControl "40/5400+30:1800+30"]

{[%evp 21,58,0,33,0,22,22,22,16,16,27,27,4,9,5,14,5,6,6,6,4,3,6,8,8,8,8,8,8,8,8,7,0,8,0,8,0,7,0,7]} 1. d4 {[%emt 0:00:06]} Nf6 {[%emt 0:00:09]} 2. c4 {[%emt 0:00:17]} e6 {[%emt 0:00:16]} 3. Nc3 {[%emt 0:00:06]} Bb4 {[%emt 0:00:05]} 4. e3 {[%emt 0:00:06]} O-O {[%emt 0:00:18]} 5. Bd3 {[%emt 0:00:05]} d5 {[%emt 0:00:45]} 6. a3 {[%emt 0:00:17]} Bxc3+ {[%emt 0:00:42]} 7. bxc3 {[%emt 0:00:06]} dxc4 {[%emt 0:01:42]} 8. Bxc4 {[%emt 0:00:08]} c5 {[%emt 0:00:04]} 9. Nf3 {[%emt 0:00:37]} Qc7 {[%emt 0:00:47]} 10. Be2 {[%emt 0:00:08]} Nc6 {[%emt 0:01:30]} 11. O-O {[%emt 0:04:47]} e5 {[%emt 0:02:08]} 12. h3 {[%emt 0:12:02] [#] E59: Nimzo-Indian: Rubinstein: Main Line: 7...Nc6 8 a3 Bxc3 9 bxc3 dxc4.} (12. d5 {keeps more tension.} e4 13. dxc6 exf3 14. Bxf3 bxc6 15. Qa4) 12... cxd4 $146 {[%emt 0:22:28]} ({Predecessor:} 12... e4 13. Nd2 Bf5 14. a4 Rfe8 15. Ba3 cxd4 16. cxd4 Qd7 17. Re1 Nd5 18. Bc4 Rad8 19. Nf1 Be6 {½-½ (36) Beliavsky,A (2653)-Dizdar,G (2549) Murska Sobota 2007}) 13. cxd4 {[%emt 0:00:35]} exd4 {[%emt 0:00:09]} 14. Nxd4 {[%emt 0:09:00]} Nxd4 {[%emt 0:00:06]} 15. Qxd4 {[%emt 0:02:51]} Rd8 {[%emt 0:00:50]} 16. Qc4 {[%emt 0:05:09]} Qxc4 {[%emt 0:10:30] The position is equal.} 17. Bxc4 {[%emt 0:00:06]} Ne4 {[%emt 0:06:42]} 18. Bb2 {[%emt 0:16:55]} Nd2 {[%emt 0:08:20]} 19. Rfc1 {[%emt 0:00:49]} Nxc4 {[%emt 0:02:34]} (19... Bf5 {is more complex.} 20. Ba2 Rac8 21. Rc3 Ne4) 20. Rxc4 {[%emt 0:00:05]} Be6 {[%emt 0:00:43]} 21. Rc7 {[%emt 0:04:59]} b5 {[%emt 0:03:40]} 22. Bd4 {[%emt 0:07:11]} a6 {[%emt 0:01:06]} 23. Rac1 {[%emt 0:00:09]} Bc4 {[%emt 0:01:47]} 24. Kh2 {[%emt 0:00:28]} Rac8 {[%emt 0:00:38]} 25. Ra7 {[%emt 0:00:11]} Ra8 {[%emt 0:05:23]} 26. Rc7 {[%emt 0:01:57]} Rac8 {[%emt 0:00:19]} 27. Ra7 {[%emt 0:00:06]} Ra8 {[%emt 0:00:05]} 28. Rc7 {[%emt 0:00:06]} Rac8 {[%emt 0:00:06]} 29. Ra7 {[%emt 0:00:05]} Ra8 {[%emt 0:00:05] An interesting draw.  Weighted Error Value: White=0.07 (flawless) /Black=0.04 (flawless)} 1/2-1/2

[Event "44th Chess Olympiad Open 2022"]
[Site "Chennai"]
[Date "2022.08.08"]
[Round "10.8"]
[White "Nabaty, Tamir"]
[Black "Bluebaum, Matthias"]
[Result "0-1"]
[ECO "E14"]
[WhiteElo "2631"]
[BlackElo "2673"]
[Annotator "TA"]
[PlyCount "98"]
[EventDate "2022.07.29"]
[EventType "team-tourn"]
[EventCountry "IND"]
[SourceTitle "playchess.com"]
[Source "ChessBase"]
[SourceQuality "1"]
[WhiteTeam "Israel"]
[BlackTeam "Germany"]
[WhiteTeamCountry "ISR"]
[BlackTeamCountry "GER"]
[TimeControl "40/5400+30:1800+30"]

{[%evp 9,98,0,14,19,16,33,24,6,7,10,21,9,12,12,15,13,19,12,16,16,13,22,18,0,0,0,0,8,15,0,16,2,13,2,32,22,28,0,164,164,218,203,253,109,102,110,100,102,105,81,81,-35,-31,-9,59,82,53,35,24,0,0,0,12,-189,-188,-416,-403,-383,-378,-356,-344,-406,-402,-393,-396,-476,-471,-496,-496,-562,-562,-562,-556,-552,-552,-1785,-1721,-29974,-29975,-29975,-29966]} 1. d4 {[%emt 0:00:02]} Nf6 {[%emt 0:00:14]} 2. Nf3 {[%emt 0:00:08]} d5 {[%emt 0:00:09]} 3. c4 {[%emt 0:00:12]} e6 {[%emt 0:00:18]} 4. e3 {[%emt 0:00:08]} b6 {[%emt 0:04:24]} 5. a3 {[%emt 0:01:09]} Bd6 {[%emt 0:02:26]} 6. b4 {[%emt 0:00:34] E14: Queen's Indian: Classical Variation (4 e3).} c5 {[%emt 0:06:17]} 7. cxd5 {[%emt 0:02:56]} (7. dxc5 {keeps more tension.} bxc5 8. cxd5 exd5 9. Nc3) 7... exd5 {[%emt 0:05:33]} 8. bxc5 {[%emt 0:03:26] White has an edge.} bxc5 {[%emt 0:00:30]} 9. dxc5 {[%emt 0:00:07]} Bxc5 {[%emt 0:00:41] [#]} 10. Bb5+ $146 {[%emt 0:00:25]} ({Predecessor:} 10. Nc3 O-O 11. Be2 Nc6 12. O-O Rb8 13. Qc2 d4 14. Na4 Bb6 15. Qxc6 dxe3 16. Nxb6 Rxb6 {0-1 (38) Fritsch,E (1603)-Bonamigo,M Nova Odessa 2016}) 10... Bd7 {[%emt 0:03:47]} 11. Bxd7+ {[%emt 0:00:09]} Nbxd7 {[%emt 0:01:17]} 12. O-O {[%emt 0:00:54]} O-O {[%emt 0:00:38]} 13. Nbd2 {[%emt 0:12:52]} Rb8 {[%emt 0:06:53]} 14. Ra2 {[%emt 0:02:04]} Qb6 {[%emt 0:04:00]} 15. Bb2 {[%emt 0:04:22]} Rfc8 {[%emt 0:04:25]} 16. Ba1 {[%emt 0:06:04]} Qa6 {[%emt 0:05:28]} 17. Nd4 {[%emt 0:06:04]} Bf8 {[%emt 0:03:09]} 18. Ne2 {[%emt 0:09:59]} Bd6 {[%emt 0:05:14]} (18... Bxa3 $2 19. Nb1 $18) 19. Nf3 {[%emt 0:08:43]} Qc4 {[%emt 0:02:32]} 20. Nc3 {[%emt 0:00:24]} Ne5 {[%emt 0:06:05] White must now prevent ...Nxf3+.} 21. Nd4 {[%emt 0:01:02]} Bc5 {[%emt 0:11:00]} 22. Rd2 {[%emt 0:03:46][%cal Ba2d2,Bd2d6,Bd6d4,Bd4g4][%mdl 32]} Bxa3 {[%emt 0:02:21]} 23. Nf5 {[%emt 0:06:14] Threatens to win with Nb1.} (23. Ncb5 $5 {[%cal Rb5a3]} Bc5 24. Nf5 Rxb5 25. Bxe5 $11) 23... Ng6 $2 {[%emt 0:06:55] [#]} ({Don't take} 23... Bb4 24. Rd4 Qa6 25. Nxd5 Nxd5 26. Rxd5 $16) (23... Bf8 $11 {and Black is okay.}) 24. Nxg7 $1 $18 {[%emt 0:03:12][%mdl 512]} Kxg7 {[%emt 0:10:29]} (24... Qb3 $142) (24... Qb4 25. Rd4) 25. Nxd5 {[%emt 0:00:17]} Be7 {[%emt 0:02:20]} 26. Nxe7 {[%emt 0:11:50]} (26. f4 $1 $18 {[%cal Rf4f5]} Rb5 27. f5) 26... Nxe7 $16 {[%emt 0:00:02]} 27. Rd6 {[%emt 0:00:07]} Neg8 {[%emt 0:00:42] [#]} 28. Qf3 $1 {[%emt 0:01:17][%cal Ra1f6][%mdl 1024] White has strong compensation.} Qh4 {[%emt 0:02:13]} 29. Rd4 {[%emt 0:09:41]} Qh6 {[%emt 0:00:01] [#]} (29... Qg5 $2 30. Rg4 Qxg4 31. Qxg4+ Kf8 32. Qa4 $18) 30. Qg3+ {[%emt 0:00:21]} ({White has to play} 30. Rf4 $1 $16) 30... Kf8 $1 $15 {[%emt 0:02:50]} 31. Qd6+ {[%emt 0:01:11]} Kg7 {[%emt 0:01:46]} (31... Ne7 $11) 32. Rg4+ $14 {[%emt 0:03:19]} Kh8 {[%emt 0:00:00]} 33. Rd1 {[%emt 0:00:49]} Rb6 {[%emt 0:00:53]} 34. Qd7 {[%emt 0:00:11]} (34. Qd5 $5) 34... Qf8 {[%emt 0:00:32][%cal Ob6d6] Hoping for ...Rd6!} 35. h4 {[%emt 0:01:05]} Rcc6 {[%emt 0:00:59] aiming for ...Rd6.} 36. Qf5 $2 {[%emt 0:02:10]} (36. Bd4 $11 {and White has nothing to worry.}) 36... Nh6 $1 $19 {[%emt 0:00:51][%csl LRf5,LRg4]} 37. Qg5 {[%emt 0:01:12]} (37. Bxf6+ {only move.} Rxf6 38. Qc5) 37... Nhxg4 {[%emt 0:00:11]} 38. Qxg4 {[%emt 0:00:03]} Rd6 {[%emt 0:00:33] And now ...Rxd1+ would win.} 39. Bd4 {[%emt 0:01:00]} Rbc6 {[%emt 0:00:46]} 40. Qf4 {[%emt 0:00:29]} Kg8 {[%emt 0:00:30]} 41. Rb1 {[%emt 0:00:48]} h6 {[%emt 0:06:03] Against Qg5+} 42. Be5 {[%emt 0:01:34]} Re6 {[%emt 0:04:58]} 43. Bd4 {[%emt 0:04:24]} a5 {[%emt 0:01:57]} ({Don't go for} 43... Re4 $2 44. Qf5 Ree6 45. Bxa7 $19) 44. h5 {[%emt 0:03:38]} Nxh5 {[%emt 0:02:26]} 45. Qf5 {[%emt 0:03:53]} Ng7 {[%emt 0:00:55]} 46. Qxa5 {[%emt 0:00:07]} Qc8 {[%emt 0:00:46]} 47. f4 {[%emt 0:02:36]} Rg6 {[%emt 0:02:34] ( -> ...Rc2)} 48. f5 {[%emt 0:10:47]} Nxf5 {[%emt 0:02:09]} 49. Qe5 {[%emt 0:00:07]} Nxd4 {[%emt 0:00:09] What a bad dream for White.  Weighted Error Value: White=0.54/Black=0.16 (very precise)} 0-1

[Event "44th Chess Olympiad Open 2022"]
[Site "Chennai"]
[Date "2022.08.08"]
[Round "10.8"]
[White "Postny, Evgeny"]
[Black "Kollars, Dmitrij"]
[Result "1/2-1/2"]
[ECO "D00"]
[WhiteElo "2564"]
[BlackElo "2648"]
[Annotator "TA"]
[PlyCount "77"]
[EventDate "2022.07.29"]
[EventType "team-tourn"]
[EventCountry "IND"]
[SourceTitle "playchess.com"]
[Source "ChessBase"]
[SourceQuality "1"]
[WhiteTeam "Israel"]
[BlackTeam "Germany"]
[WhiteTeamCountry "ISR"]
[BlackTeamCountry "GER"]
[TimeControl "40/5400+30:1800+30"]

{[%evp 9,77,3,10,14,0,0,0,0,0,0,0,0,0,0,0,0,0,0,4,0,0,0,0,0,0,0,13,0,0,0,0,0,0,0,0,0,0,0,0,0,0,-16,-7,-6,-1,0,12,12,8,8,8,8,20,22,18,19,18,19,50,50,50,50,60,60,60,60,60,60,60,60]} 1. d4 {[%emt 0:00:04][%cal Bd2d4,Bd4c5][%mdl 32]} Nf6 {[%emt 0:00:10]} 2. Bg5 {[%emt 0:00:11]} d5 {[%emt 0:00:47]} 3. e3 {[%emt 0:00:11]} c5 {[%emt 0:00:24]} 4. Bxf6 {[%emt 0:00:25]} gxf6 {[%emt 0:00:14]} 5. dxc5 {[%emt 0:00:33]} e6 {[%emt 0:00:35]} 6. c4 {[%emt 0:00:37] D00: 1 d4 d5: Unusual lines.} dxc4 {[%emt 0:00:27]} 7. Nd2 {[%emt 0:00:19]} c3 {[%emt 0:00:57]} 8. bxc3 {[%emt 0:00:10] The position is equal.} Nd7 {[%emt 0:02:11]} 9. c6 {[%emt 0:03:00]} bxc6 {[%emt 0:00:18]} 10. Ngf3 {[%emt 0:00:22]} f5 {[%emt 0:02:47]} 11. Be2 {[%emt 0:11:40]} Bg7 {[%emt 0:10:03]} 12. Qc2 {[%emt 0:00:44]} O-O {[%emt 0:02:40]} 13. O-O {[%emt 0:00:41] [#]} c5 $146 {[%emt 0:06:51]} ({Predecessor:} 13... Bb7 14. Nc4 Qc7 15. Nfd2 Rfd8 16. Rab1 c5 17. Rxb7 Qxb7 18. Bf3 Qc7 19. Bxa8 Rxa8 {1-0 (37) Postny,E (2557)-Dragnev,V (2535) Warsaw 2021}) 14. e4 {[%emt 0:09:16]} Qf6 {[%emt 0:10:58]} 15. exf5 {[%emt 0:09:18]} exf5 {[%emt 0:00:22]} 16. Rab1 {[%emt 0:04:44]} Re8 {[%emt 0:04:00]} 17. Bd3 {[%emt 0:09:35]} Nf8 {[%emt 0:02:58]} 18. Nc4 {[%emt 0:03:45]} Be6 {[%emt 0:04:57]} 19. Nd6 {[%emt 0:09:52][%csl LRe8,LRf5]} Red8 {[%emt 0:01:09]} 20. Nb7 {[%emt 0:00:09] Pair of Knights!} Rdc8 {[%emt 0:02:47]} 21. Nd6 {[%emt 0:00:37]} Rd8 {[%emt 0:00:51]} 22. Nb7 {[%emt 0:00:09][%cal Bd6b7,Bb7a5,Ba5c4][%mdl 32]} c4 {[%emt 0:07:32]} 23. Be2 {[%emt 0:00:17]} ({Of course not} 23. Nxd8 cxd3 24. Qxd3 Rxd8 $17) 23... Rdc8 {[%emt 0:00:27] Strongly threatening ...Bd5.} 24. Nd4 {[%emt 0:02:44]} Bd7 {[%emt 0:04:20]} 25. Bf3 {[%emt 0:07:44][%cal Ob7c5]} Rab8 {[%emt 0:07:59]} 26. Na5 {[%emt 0:06:44]} Rb6 {[%emt 0:00:00]} 27. Qe2 {[%emt 0:06:05]} Ne6 {[%emt 0:02:11] [#] And now ...Rxb1 would win.} 28. Nxc4 {[%emt 0:01:19]} Nxd4 {[%emt 0:07:39]} (28... Rxb1 {is more complex.} 29. Rxb1 Nxd4 30. cxd4 Qa6) 29. cxd4 {[%emt 0:00:05]} Rxb1 {[%emt 0:00:03]} 30. Rxb1 {[%emt 0:00:05]} Qxd4 {[%emt 0:00:12]} 31. Rd1 {[%emt 0:03:26]} Qxc4 {[%emt 0:00:09]} 32. Qxc4 {[%emt 0:00:24]} Rxc4 {[%emt 0:00:05]} 33. Rxd7 $11 {[%emt 0:00:02][%mdl 4096] Endgame KRB-KRB} Bd4 {[%emt 0:01:55] [#] ( -> ...Rc1+)} 34. g3 {[%emt 0:03:19] White is slightly better.} Bb6 {[%emt 0:00:30]} 35. Bd5 {[%emt 0:02:20][%csl LRc4,LRf7]} Rc7 {[%emt 0:00:25]} 36. Bxf7+ $1 {[%emt 0:01:50]} Kg7 {[%emt 0:00:08]} 37. Be6+ {[%emt 0:00:12]} Kf6 {[%emt 0:01:11]} 38. Rxc7 {[%emt 0:00:39]} Bxc7 {[%emt 0:00:06]} 39. Bb3 {[%emt 0:00:06] Weighted Error Value: White=0.01 (flawless) /Black=0.03 (flawless)} 1/2-1/2

[Event "44th Chess Olympiad Open 2022"]
[Site "Chennai"]
[Date "2022.08.08"]
[Round "10.9"]
[White "Jones, Gawain C B"]
[Black "Sonis, Francesco"]
[Result "1-0"]
[ECO "A07"]
[WhiteElo "2652"]
[BlackElo "2543"]
[Annotator "TA"]
[PlyCount "99"]
[EventDate "2022.07.29"]
[EventType "team-tourn"]
[EventCountry "IND"]
[SourceTitle "playchess.com"]
[Source "ChessBase"]
[SourceQuality "1"]
[WhiteTeam "England"]
[BlackTeam "Italy"]
[WhiteTeamCountry "ENG"]
[BlackTeamCountry "ITA"]
[TimeControl "40/5400+30:1800+30"]

{[%evp 9,99,10,17,0,0,0,0,7,11,-7,33,29,43,41,62,41,53,54,72,62,110,114,120,108,131,108,143,137,142,119,187,184,181,183,203,195,204,170,185,191,201,206,232,206,225,205,239,239,250,208,208,194,247,239,239,231,232,227,234,222,221,221,222,222,221,206,226,226,312,297,289,279,307,309,332,325,317,308,303,296,248,248,329,280,412,419,387,374,5057,2574,1415,1010]} 1. Nf3 {[%emt 0:00:20]} d5 {[%emt 0:00:32]} 2. g3 {[%emt 0:00:11]} Nd7 {[%emt 0:03:22]} 3. Bg2 {[%emt 0:02:11]} e5 {[%emt 0:00:05]} 4. d3 {[%emt 0:05:28]} Ngf6 {[%emt 0:00:10]} 5. O-O {[%emt 0:00:07]} Bc5 {[%emt 0:01:38]} 6. Nxe5 {[%emt 0:03:32] A07: Réti Opening: New York and Capablanca Systems.} Nxe5 {[%emt 0:02:03]} 7. d4 {[%emt 0:00:04]} Bd6 $1 {[%emt 0:00:01]} 8. dxe5 {[%emt 0:00:08] The position is equal.} Bxe5 {[%emt 0:00:04]} 9. c4 {[%emt 0:06:12][%cal Rc4d5]} dxc4 {[%emt 0:11:37]} 10. Qc2 {[%emt 0:05:47]} O-O {[%emt 0:05:04]} 11. Na3 {[%emt 0:01:43]} c6 {[%emt 0:05:51][%cal Oc4c3]} 12. Nxc4 {[%emt 0:03:41]} Bc7 {[%emt 0:00:05]} 13. b3 {[%emt 0:01:26]} Be6 {[%emt 0:01:40] [#]} 14. Rd1 $5 $146 {[%emt 0:10:54][%mdl 8] New and interesting.} ({Predecessor:} 14. Bb2 Nd5 15. Rad1 Qc8 16. e4 Ne7 17. Ba3 Re8 18. Rfe1 Ng6 19. f4 Bg4 20. Rd2 {0-1 (48) Ruotanen,H (2025)-Jaderholm,B (1908) Finland 2009}) 14... Bd5 {[%emt 0:05:42] Black is on the road to losing.} (14... Qb8 $14 {feels stronger.}) 15. Bb2 $16 {[%emt 0:16:01] [#] And now e4 would win. White is more active.} Re8 {[%emt 0:05:22] Inhibits e4.} 16. Rac1 $36 {[%emt 0:02:09][%mdl 2048] Black is under strong pressure.} b5 {[%emt 0:07:53]} 17. Ne3 {[%emt 0:04:16]} Bb6 {[%emt 0:01:09]} 18. Nxd5 {[%emt 0:01:57]} cxd5 {[%emt 0:01:24]} 19. e3 {[%emt 0:01:38]} Qd6 {[%emt 0:06:30]} (19... Rc8 $16 20. Qxc8 Qxc8 21. Rxc8 Rxc8) 20. Bxf6 $18 {[%emt 0:02:11]} Qxf6 {[%emt 0:00:06]} 21. Rxd5 {[%emt 0:00:42] [#] Strongly threatening Rf5.} g6 {[%emt 0:02:28] Against Rf5} 22. Rxb5 {[%emt 0:01:17]} Rad8 {[%emt 0:00:10]} 23. Rd5 {[%emt 0:02:01]} Kg7 {[%emt 0:00:43]} 24. b4 {[%emt 0:06:47][%cal Bb3b4,Bb4b5][%mdl 32]} h5 {[%emt 0:01:53]} 25. a4 {[%emt 0:02:53]} Rxd5 {[%emt 0:00:45]} 26. Bxd5 {[%emt 0:00:08]} Re5 {[%emt 0:00:02]} 27. Rd1 {[%emt 0:03:35] a5 is the strong threat.} a5 {[%emt 0:01:52]} 28. b5 {[%emt 0:02:15]} Rf5 {[%emt 0:01:27]} 29. Be4 {[%emt 0:00:33]} Rc5 {[%emt 0:00:10]} 30. Qd3 {[%emt 0:00:30]} Re5 {[%emt 0:02:08]} (30... h4 {is a better defense.} 31. Bg2 Qe5) 31. Bg2 {[%emt 0:01:32]} h4 {[%emt 0:00:13]} 32. Qd6 {[%emt 0:00:54]} Re6 {[%emt 0:00:05]} 33. Qf4 {[%emt 0:00:55]} hxg3 {[%emt 0:02:22]} 34. Qxf6+ {[%emt 0:00:10]} ({Don't do} 34. Qxg3 Qc3 35. Qg4 Rf6) 34... Kxf6 {[%emt 0:00:04]} 35. hxg3 {[%emt 0:00:05][%mdl 4096] Endgame Threatens to win with Bh3. KRB-KRB} Ke7 {[%emt 0:00:04]} 36. Bd5 {[%emt 0:03:03]} Rd6 {[%emt 0:00:36]} 37. Kf1 {[%emt 0:03:32]} g5 {[%emt 0:03:18]} 38. g4 {[%emt 0:02:11]} f6 {[%emt 0:02:27]} 39. Ke2 {[%emt 0:00:14]} Rd8 {[%emt 0:00:04]} 40. Kf3 {[%emt 0:01:53]} Kd6 {[%emt 0:05:28]} 41. Be4+ {[%emt 0:33:40]} Ke5 {[%emt 0:30:36]} 42. Rc1 {[%emt 0:00:10]} Rd7 {[%emt 0:00:50]} 43. Rc6 {[%emt 0:00:58]} Rd6 {[%emt 0:00:04]} 44. Rc4 {[%emt 0:00:20]} Ke6 {[%emt 0:03:27]} 45. Bb7 {[%emt 0:00:00]} Ke7 {[%emt 0:00:00]} 46. Bc8 {[%emt 0:00:00]} Rd5 {[%emt 0:00:00]} (46... Bd8 {was necessary.} 47. Ke2 Bb6 48. Re4+ Kf8) 47. Rc6 {[%emt 0:00:00]} Rd6 {[%emt 0:00:00]} 48. Ke4 {[%emt 0:00:00]} Rxc6 $2 {[%emt 0:00:00]} (48... Bd8 49. Rc2 Rd1) 49. bxc6 {[%emt 0:00:00]} Bc7 {[%emt 0:00:00]} 50. Kf5 {[%emt 0:00:00] Weighted Error Value: White=0.05 (flawless) /Black=0.22 (precise)} 1-0